[Event "Croatian junior league 2021"]
[Site "Rabac"]
[Date "2021.04.06"]
[Round "2.11"]
[White "Vukojevic, Toni"]
[Black "Birkic, Josip"]
[Result "1/2-1/2"]
[ECO "B15"]
[WhiteElo "1538"]
[BlackElo "1972"]
[Annotator "ChessBase"]
[PlyCount "127"]
[EventDate "2021.04.06"]
[EventType "swiss"]
[EventCountry "CRO"]
[SourceTitle "playchess.com"]
[Source "ChessBase"]
[SourceQuality "1"]
[TimeControl "5400+30"]

1. e4 {[%emt 0:00:00]} c6 {[%emt 0:05:28]} 2. d4 {[%emt 0:00:00]} d5 {[%emt 0:00:08]} 3. Nc3 {[%emt 0:00:00]} Nf6 {[%emt 0:01:09]} 4. e5 {[%emt 0:00:00]} Ng8 {[%emt 0:00:35]} 5. f4 {[%emt 0:01:10]} h5 {[%emt 0:01:03]} 6. Be2 {[%emt 0:00:45]} h4 {[%emt 0:00:48]} 7. h3 {[%emt 0:00:25]} Bf5 {[%emt 0:00:20]} 8. Nf3 {[%emt 0:00:45]} e6 {[%emt 0:00:12]} 9. Be3 {[%emt 0:00:14]} Ne7 {[%emt 0:02:51]} 10. Qd2 {[%emt 0:03:54]} Nd7 {[%emt 0:01:13]} 11. Bf2 {[%emt 0:00:19]} Ng6 {[%emt 0:00:54]} 12. a3 {[%emt 0:01:07]} Be7 {[%emt 0:00:46]} 13. O-O {[%emt 0:02:30]} Rc8 {[%emt 0:03:02]} 14. b4 {[%emt 0:00:39]} O-O {[%emt 0:01:40]} 15. Be3 {[%emt 0:05:00]} f6 {[%emt 0:04:45]} 16. Bd3 {[%emt 0:00:31]} Bxd3 {[%emt 0:01:50]} 17. Qxd3 {[%emt 0:00:08]} f5 {[%emt 0:00:15]} 18. Qe2 {[%emt 0:04:58]} b6 {[%emt 0:01:17]} 19. Na4 {[%emt 0:10:29]} c5 {[%emt 0:02:23]} 20. c3 {[%emt 0:00:28]} Rc7 {[%emt 0:02:13]} 21. Rac1 {[%emt 0:01:49]} Qe8 {[%emt 0:01:20]} 22. Nb2 {[%emt 0:02:28]} Qa8 {[%emt 0:01:53]} 23. Ng5 {[%emt 0:06:31]} Bxg5 {[%emt 0:01:34]} 24. fxg5 {[%emt 0:00:06]} f4 {[%emt 0:08:15]} 25. Bd2 {[%emt 0:02:20]} Rf5 {[%emt 0:00:48]} 26. Qh5 {[%emt 0:00:54]} Ndf8 {[%emt 0:01:01]} 27. Nd3 {[%emt 0:00:17]} cxd4 {[%emt 0:03:46]} 28. cxd4 {[%emt 0:00:08]} Rcf7 {[%emt 0:00:41]} 29. Be1 {[%emt 0:05:24]} Qd8 {[%emt 0:01:51]} 30. Bxh4 {[%emt 0:01:43]} Nxh4 {[%emt 0:00:48]} 31. Qxh4 {[%emt 0:00:07]} Ng6 {[%emt 0:00:34]} 32. Qg4 {[%emt 0:00:59]} Qxg5 {[%emt 0:05:18]} 33. Qxg5 {[%emt 0:00:20]} Rxg5 {[%emt 0:00:07]} 34. Rc8+ {[%emt 0:00:06]} Kh7 {[%emt 0:00:42]} 35. Re8 {[%emt 0:00:14]} Rg3 {[%emt 0:00:44]} 36. Rf3 {[%emt 0:01:27]} Rxf3 {[%emt 0:01:52]} 37. gxf3 {[%emt 0:00:09]} Ne7 {[%emt 0:01:06]} 38. b5 {[%emt 0:01:09]} Kg6 {[%emt 0:00:54]} 39. Nb4 {[%emt 0:00:47]} Kf5 {[%emt 0:00:25]} 40. Ra8 {[%emt 0:01:00]} Kg6 {[%emt 0:07:52]} 41. Rxa7 {[%emt 0:01:24]} Nf5 {[%emt 0:00:13]} 42. Rxf7 {[%emt 0:00:08]} Kxf7 {[%emt 0:00:02]} 43. Nc6 {[%emt 0:00:39]} Ne3 {[%emt 0:00:56]} 44. a4 {[%emt 0:00:17]} Nc4 {[%emt 0:00:16]} 45. Kf2 {[%emt 0:00:26]} Ke8 {[%emt 0:03:02]} 46. Ke2 {[%emt 0:00:53]} Kd7 {[%emt 0:00:23]} 47. h4 {[%emt 0:04:40]} Ne3 {[%emt 0:03:44]} 48. a5 {[%emt 0:03:54]} bxa5 {[%emt 0:00:20]} 49. Nxa5 {[%emt 0:00:03]} Nf5 {[%emt 0:00:21]} 50. Nb3 {[%emt 0:00:20]} Kc7 {[%emt 0:02:21]} 51. Kd3 {[%emt 0:00:15]} Kb6 {[%emt 0:08:19]} 52. Nc5 {[%emt 0:00:40]} Kxb5 {[%emt 0:00:40]} 53. Nxe6 {[%emt 0:00:10]} Kc6 {[%emt 0:01:27]} 54. h5 {[%emt 0:00:40]} Nh4 {[%emt 0:02:53]} 55. Nxg7 {[%emt 0:00:43]} Nxf3 {[%emt 0:00:21]} 56. e6 {[%emt 0:00:17]} Kd6 {[%emt 0:00:20]} 57. h6 {[%emt 0:02:05]} Ng5 {[%emt 0:00:34]} 58. Nh5 {[%emt 0:02:08]} Kxe6 {[%emt 0:01:22]} 59. Nxf4+ {[%emt 0:00:07]} Kf6 {[%emt 0:00:12]} 60. Nxd5+ {[%emt 0:02:23]} Kg6 {[%emt 0:00:09]} 61. Ne7+ {[%emt 0:00:07]} Kxh6 {[%emt 0:00:10]} 62. d5 {[%emt 0:00:24]} Nf7 {[%emt 0:00:37]} 63. Kd4 {[%emt 0:00:05]} Kg5 {[%emt 0:00:17]} 64. Ke4 {[%emt 0:00:34]} 1/2-1/2

[Event "Croatian junior league 2021"]
[Site "Rabac"]
[Date "2021.04.06"]
[Round "2.12"]
[White "Levacic, Matej"]
[Black "Bunic, Emanuel"]
[Result "1-0"]
[ECO "E16"]
[WhiteElo "2144"]
[BlackElo "1839"]
[Annotator "ChessBase"]
[PlyCount "109"]
[EventDate "2021.04.06"]
[EventType "swiss"]
[EventCountry "CRO"]
[SourceTitle "playchess.com"]
[Source "ChessBase"]
[SourceQuality "1"]
[TimeControl "5400+30"]

1. d4 {[%emt 0:00:13]} Nf6 {[%emt 0:00:00]} 2. Nf3 {[%emt 0:00:31]} e6 {[%emt 0:00:00]} 3. c4 {[%emt 0:00:11]} Bb4+ {[%emt 0:00:13]} 4. Bd2 {[%emt 0:00:10]} c5 {[%emt 0:00:29]} 5. Bxb4 {[%emt 0:06:57]} cxb4 {[%emt 0:00:39]} 6. g3 {[%emt 0:03:56]} b6 {[%emt 0:00:48]} 7. Bg2 {[%emt 0:00:30]} Bb7 {[%emt 0:00:16]} 8. O-O {[%emt 0:00:50]} O-O {[%emt 0:01:41]} 9. a3 {[%emt 0:05:46]} bxa3 {[%emt 0:01:04]} 10. Rxa3 {[%emt 0:01:22]} d6 {[%emt 0:03:17]} 11. Nc3 {[%emt 0:01:59]} a6 {[%emt 0:05:49]} 12. Qd2 {[%emt 0:12:19]} Qc7 {[%emt 0:02:22]} 13. b3 {[%emt 0:00:50]} Nbd7 {[%emt 0:01:31]} 14. Rd1 {[%emt 0:02:14]} Rfc8 {[%emt 0:03:26]} 15. Rc1 {[%emt 0:11:21]} Ne4 {[%emt 0:07:38]} 16. Nxe4 {[%emt 0:00:17]} Bxe4 {[%emt 0:00:18]} 17. Raa1 {[%emt 0:01:09]} Nf6 {[%emt 0:04:36]} 18. Qf4 {[%emt 0:02:13]} a5 {[%emt 0:04:03]} 19. Bh3 {[%emt 0:02:41]} d5 {[%emt 0:08:12]} 20. Ne5 {[%emt 0:07:46]} dxc4 {[%emt 0:01:38]} 21. Rxc4 {[%emt 0:03:53]} Qd6 {[%emt 0:01:26]} 22. Rac1 {[%emt 0:02:42]} Rxc4 {[%emt 0:02:43]} 23. Rxc4 {[%emt 0:05:20]} Bd5 {[%emt 0:01:04]} 24. Rc3 {[%emt 0:00:49]} Rd8 {[%emt 0:05:37]} 25. Bg2 {[%emt 0:02:50]} Rf8 {[%emt 0:06:38]} 26. Ng6 {[%emt 0:08:06]} Qxf4 {[%emt 0:04:08]} 27. Nxf4 {[%emt 0:00:46]} Bxg2 {[%emt 0:01:53]} 28. Kxg2 {[%emt 0:00:11]} Rb8 {[%emt 0:03:19]} 29. Rc7 {[%emt 0:01:34]} Kf8 {[%emt 0:01:16]} 30. Kf3 {[%emt 0:01:06]} g5 {[%emt 0:01:51]} 31. Nd3 {[%emt 0:01:02]} g4+ {[%emt 0:02:59]} 32. Kg2 {[%emt 0:00:08]} Nd5 {[%emt 0:04:54]} 33. Ra7 {[%emt 0:00:17]} h5 {[%emt 0:01:52]} 34. Ne5 {[%emt 0:01:51]} Rc8 {[%emt 0:01:17]} 35. e4 {[%emt 0:03:01]} Nb4 {[%emt 0:02:27]} 36. Nd7+ {[%emt 0:02:04]} Kg7 {[%emt 0:00:41]} 37. Nxb6 {[%emt 0:00:12]} Rc2 {[%emt 0:00:24]} 38. d5 {[%emt 0:04:37]} exd5 {[%emt 0:01:23]} 39. exd5 {[%emt 0:00:12]} Rd2 {[%emt 0:01:39]} 40. Rxa5 {[%emt 0:00:35]} Nc2 {[%emt 0:00:27]} 41. Kf1 {[%emt 0:01:21]} Nd4 {[%emt 0:00:31]} 42. Ra1 {[%emt 0:02:26]} Nxb3 {[%emt 0:00:35]} 43. Ra3 {[%emt 0:02:17]} Nd4 {[%emt 0:00:20]} 44. Ke1 {[%emt 0:00:19]} Nc2+ {[%emt 0:02:17]} 45. Kxd2 {[%emt 0:00:06]} Nxa3 {[%emt 0:00:05]} 46. Kd3 {[%emt 0:00:49]} f5 {[%emt 0:03:46]} 47. Kd4 {[%emt 0:00:25]} Kf6 {[%emt 0:03:12]} 48. Kc5 {[%emt 0:00:26]} Nc2 {[%emt 0:01:20]} 49. d6 {[%emt 0:00:27]} Ne1 {[%emt 0:00:37]} 50. Nd5+ {[%emt 0:00:48]} Ke6 {[%emt 0:00:14]} 51. Kc6 {[%emt 0:00:30]} Nf3 {[%emt 0:00:44]} 52. Nf4+ {[%emt 0:00:23]} Kf7 {[%emt 0:00:31]} 53. d7 {[%emt 0:00:31]} Ne5+ {[%emt 0:01:11]} 54. Kc7 {[%emt 0:00:06]} Nxd7 {[%emt 0:00:24]} 55. Kxd7 {[%emt 0:00:05]} 1-0

[Event "Croatian junior league 2021"]
[Site "Rabac"]
[Date "2021.04.06"]
[Round "2.13"]
[White "Zadro, Matej"]
[Black "Ljubicic, Mario"]
[Result "0-1"]
[ECO "B00"]
[WhiteElo "1742"]
[BlackElo "2036"]
[Annotator "ChessBase"]
[PlyCount "50"]
[EventDate "2021.04.06"]
[EventType "swiss"]
[EventCountry "CRO"]
[SourceTitle "playchess.com"]
[Source "ChessBase"]
[SourceQuality "1"]
[TimeControl "5400+30"]

1. e4 {[%emt 0:00:00]} Nc6 {[%emt 0:03:11]} 2. Nf3 {[%emt 0:01:06]} d6 {[%emt 0:00:09]} 3. d4 {[%emt 0:00:44]} Nf6 {[%emt 0:00:10]} 4. Nc3 {[%emt 0:00:14]} g6 {[%emt 0:00:19]} 5. Ng1 {[%emt 0:07:05]} e5 {[%emt 0:02:20]} 6. d5 {[%emt 0:00:43]} Nb8 {[%emt 0:00:20]} 7. Nge2 {[%emt 0:00:29]} c6 {[%emt 0:01:09]} 8. f3 {[%emt 0:02:28]} Bg7 {[%emt 0:00:55]} 9. Bg5 {[%emt 0:01:09]} O-O {[%emt 0:04:32]} 10. Qd2 {[%emt 0:03:50]} c5 {[%emt 0:19:38]} 11. g4 {[%emt 0:02:59]} Bd7 {[%emt 0:01:58]} 12. h4 {[%emt 0:05:27]} b5 {[%emt 0:01:32]} 13. O-O-O {[%emt 0:01:33]} b4 {[%emt 0:00:31]} 14. Nb1 {[%emt 0:00:08]} Qa5 {[%emt 0:02:35]} 15. h5 {[%emt 0:01:18]} Qxa2 {[%emt 0:02:17]} 16. Bh6 {[%emt 0:00:30]} Be8 {[%emt 0:13:00]} 17. Ng3 {[%emt 0:12:02]} c4 {[%emt 0:10:22]} 18. c3 {[%emt 0:16:53]} bxc3 {[%emt 0:08:34]} 19. Nxc3 {[%emt 0:01:05]} Qa1+ {[%emt 0:01:12]} 20. Nb1 {[%emt 0:18:08]} c3 {[%emt 0:02:40]} 21. bxc3 {[%emt 0:00:42]} Ba4 {[%emt 0:08:14]} 22. Nf5 {[%emt 0:05:11]} Nbd7 {[%emt 0:05:18]} 23. Bxg7 {[%emt 0:12:33]} Rfb8 {[%emt 0:01:42]} 24. Bd3 {[%emt 0:00:55]} Nc5 {[%emt 0:01:04]} 25. Qh6 {[%emt 0:04:44]} Qb2# {[%emt 0:00:12]} 0-1

[Event "Croatian junior league 2021"]
[Site "Rabac"]
[Date "2021.04.06"]
[Round "2.14"]
[White "Mijic, Karlo"]
[Black "Horcicka, Jan"]
[Result "0-1"]
[ECO "C68"]
[WhiteElo "1599"]
[BlackElo "1698"]
[Annotator "NA"]
[PlyCount "52"]
[EventDate "2021.04.06"]
[EventType "swiss"]
[EventCountry "CRO"]
[SourceTitle "playchess.com"]
[Source "ChessBase"]
[SourceQuality "1"]
[TimeControl "5400+30"]

1. e4 {[%emt 0:00:25]} e5 {[%emt 0:00:00]} 2. Nf3 {[%emt 0:00:03]} Nc6 {[%emt 0:00:03]} 3. Bb5 {[%emt 0:00:03]} a6 {[%emt 0:00:04]} 4. Bxc6 {[%emt 0:00:04]} dxc6 {[%emt 0:00:04]} 5. O-O {[%emt 0:00:04]} Bg4 {[%emt 0:00:03]} 6. h3 {[%emt 0:01:56]} h5 {[%emt 0:00:59]} 7. d3 {[%emt 0:00:29]} Qf6 {[%emt 0:00:46]} 8. Nbd2 {[%emt 0:00:12]} g5 {[%emt 0:01:58]} 9. Nc4 {[%emt 0:03:49]} Bxf3 {[%emt 0:00:41]} 10. Qxf3 {[%emt 0:00:06]} Qxf3 {[%emt 0:00:04]} 11. gxf3 {[%emt 0:00:08]} f6 {[%emt 0:00:11]} 12. Ne3 {[%emt 0:08:30]} O-O-O {[%emt 0:01:25]} 13. Kg2 {[%emt 0:00:14]} Nh6 {[%emt 0:01:27]} 14. Rh1 {[%emt 0:02:19]} Bc5 {[%emt 0:02:09]} 15. Kf1 {[%emt 0:00:25]} Rhf8 {[%emt 0:03:44]} 16. h4 {[%emt 0:02:06]} g4 {[%emt 0:01:21]} 17. f4 {[%emt 0:01:04]} f5 {[%emt 0:04:35]} 18. exf5 {[%emt 0:08:53]} Nxf5 {[%emt 0:13:37]} 19. Ng2 {[%emt 0:01:21]} e4 {[%emt 0:01:57]} 20. Ke2 {[%emt 0:05:08]} exd3+ {[%emt 0:11:21]} 21. cxd3 {[%emt 0:00:08]} Rfe8+ {[%emt 0:00:03]} 22. Be3 {[%emt 0:01:56]} g3 {[%emt 0:00:51]} 23. Rac1 {[%emt 0:04:16]} gxf2 {[%emt 0:06:50]} 24. Rh3 {[%emt 0:02:41]} Ba7 {[%emt 0:04:55]} 25. Rc3 {[%emt 0:08:18]} Bxe3 {[%emt 0:01:19]} 26. Nxe3 {[%emt 0:04:36]} Nxe3 {[%emt 0:00:07]} 0-1

[Event "Croatian junior league 2021"]
[Site "Rabac"]
[Date "2021.04.06"]
[Round "2.15"]
[White "Kostic, Lovro"]
[Black "Bedic, Noemi"]
[Result "1/2-1/2"]
[ECO "A45"]
[WhiteElo "1367"]
[BlackElo "1587"]
[Annotator "NA"]
[PlyCount "100"]
[EventDate "2021.04.06"]
[EventType "swiss"]
[EventCountry "CRO"]
[SourceTitle "playchess.com"]
[Source "ChessBase"]
[SourceQuality "1"]
[TimeControl "5400+30"]

1. d4 {[%emt 0:00:00]} Nf6 {[%emt 0:00:00]} 2. Bg5 {[%emt 0:00:00]} g6 {[%emt 0:00:22]} 3. Bxf6 {[%emt 0:00:00]} exf6 {[%emt 0:00:06]} 4. g3 {[%emt 0:00:19]} Bg7 {[%emt 0:00:06]} 5. Bg2 {[%emt 0:00:19]} d5 {[%emt 0:00:41]} 6. Nd2 {[%emt 0:01:44]} O-O {[%emt 0:01:09]} 7. e3 {[%emt 0:00:05]} Re8 {[%emt 0:02:05]} 8. Ne2 {[%emt 0:01:10]} b6 {[%emt 0:07:09]} 9. O-O {[%emt 0:02:13]} Bb7 {[%emt 0:05:39]} 10. c4 {[%emt 0:03:44]} c6 {[%emt 0:00:58]} 11. Rc1 {[%emt 0:03:29]} f5 {[%emt 0:03:05]} 12. a4 {[%emt 0:05:56]} Nd7 {[%emt 0:00:42]} 13. b4 {[%emt 0:03:44]} Nf6 {[%emt 0:06:12]} 14. c5 {[%emt 0:05:05]} a5 {[%emt 0:04:29]} 15. Qb3 {[%emt 0:03:52]} bxc5 {[%emt 0:08:48]} 16. bxc5 {[%emt 0:00:26]} Rb8 {[%emt 0:01:45]} 17. Rfe1 {[%emt 0:04:21]} Ba6 {[%emt 0:00:29]} 18. Qc2 {[%emt 0:01:00]} Re7 {[%emt 0:07:18]} 19. Nc3 {[%emt 0:03:06]} Ne4 {[%emt 0:04:41]} 20. Rb1 {[%emt 0:06:50]} Nxd2 {[%emt 0:06:14]} 21. Qxd2 {[%emt 0:00:15]} Reb7 {[%emt 0:00:33]} 22. Rxb7 {[%emt 0:02:26]} Rxb7 {[%emt 0:00:15]} 23. Rb1 {[%emt 0:04:12]} Rxb1+ {[%emt 0:05:23]} 24. Nxb1 {[%emt 0:00:07]} Qb8 {[%emt 0:00:05]} 25. Qd1 {[%emt 0:05:18]} Bc4 {[%emt 0:00:29]} 26. Nd2 {[%emt 0:01:04]} Qb4 {[%emt 0:03:11]} 27. Nxc4 {[%emt 0:00:41]} Qxc4 {[%emt 0:00:11]} 28. Bf1 {[%emt 0:01:47]} Qb4 {[%emt 0:00:06]} 29. Bd3 {[%emt 0:02:24]} Bf6 {[%emt 0:04:45]} 30. Qb1 {[%emt 0:00:25]} Qxa4 {[%emt 0:00:18]} 31. Qb6 {[%emt 0:04:13]} f4 {[%emt 0:08:46]} 32. gxf4 {[%emt 0:01:52]} Qd1+ {[%emt 0:08:31]} 33. Bf1 {[%emt 0:00:09]} Qg4+ {[%emt 0:00:46]} 34. Bg2 {[%emt 0:00:44]} Bh4 {[%emt 0:03:03]} 35. Qa6 {[%emt 0:07:02]} Qd1+ {[%emt 0:00:25]} 36. Qf1 {[%emt 0:03:42]} Qxf1+ {[%emt 0:00:05]} 37. Bxf1 {[%emt 0:00:07]} Kf8 {[%emt 0:00:09]} 38. f3 {[%emt 0:01:19]} f5 {[%emt 0:00:41]} 39. Bd3 {[%emt 0:00:50]} a4 {[%emt 0:02:57]} 40. Kf1 {[%emt 0:02:01]} a3 {[%emt 0:00:41]} 41. Bb1 {[%emt 0:00:16]} Bd8 {[%emt 0:00:29]} 42. Ke2 {[%emt 0:00:43]} Ba5 {[%emt 0:00:09]} 43. Kd3 {[%emt 0:00:22]} Ke7 {[%emt 0:00:21]} 44. e4 {[%emt 0:01:21]} fxe4+ {[%emt 0:00:15]} 45. fxe4 {[%emt 0:00:12]} Ke6 {[%emt 0:03:56]} 46. exd5+ {[%emt 0:01:07]} cxd5 {[%emt 0:00:23]} 47. Ke3 {[%emt 0:00:32]} Bc7 {[%emt 0:00:38]} 48. h3 {[%emt 0:01:12]} Bb8 {[%emt 0:00:40]} 49. Kf3 {[%emt 0:00:57]} h6 {[%emt 0:00:24]} 50. Ke3 {[%emt 0:00:24]} Bc7 {[%emt 0:00:00]} 1/2-1/2

[Event "Croatian junior league 2021"]
[Site "Rabac"]
[Date "2021.04.06"]
[Round "2.16"]
[White "Colev, Ivor"]
[Black "Cvitan, Ena"]
[Result "0-1"]
[ECO "B12"]
[WhiteElo "1847"]
[BlackElo "2263"]
[Annotator "ChessBase"]
[PlyCount "88"]
[EventDate "2021.04.06"]
[EventType "swiss"]
[EventCountry "CRO"]
[SourceTitle "playchess.com"]
[Source "ChessBase"]
[SourceQuality "1"]
[TimeControl "5400+30"]

1. e4 {[%emt 0:00:00]} c6 {[%emt 0:07:27]} 2. d4 {[%emt 0:00:00]} d5 {[%emt 0:00:04]} 3. e5 {[%emt 0:00:00]} c5 {[%emt 0:00:06]} 4. dxc5 {[%emt 0:00:27]} e6 {[%emt 0:00:43]} 5. a3 {[%emt 0:00:24]} Bxc5 {[%emt 0:01:31]} 6. b4 {[%emt 0:00:06]} Bb6 {[%emt 0:01:37]} 7. Bb2 {[%emt 0:00:24]} Nh6 {[%emt 0:06:48]} 8. Nf3 {[%emt 0:07:58]} Ng4 {[%emt 0:08:06]} 9. Bb5+ {[%emt 0:00:14]} Bd7 {[%emt 0:03:59]} 10. Bxd7+ {[%emt 0:00:10]} Nxd7 {[%emt 0:00:45]} 11. O-O {[%emt 0:00:22]} Qc7 {[%emt 0:09:33]} 12. h3 {[%emt 0:11:32]} Ngxe5 {[%emt 0:06:52]} 13. Nxe5 {[%emt 0:00:08]} Nxe5 {[%emt 0:00:06]} 14. Re1 {[%emt 0:00:32]} Ng6 {[%emt 0:02:13]} 15. Qxd5 {[%emt 0:10:50]} O-O {[%emt 0:05:04]} 16. Qe4 {[%emt 0:01:40]} Rac8 {[%emt 0:01:16]} 17. Nc3 {[%emt 0:05:01]} Qg3 {[%emt 0:04:41]} 18. Nd1 {[%emt 0:09:50]} Qf4 {[%emt 0:14:51]} 19. Qxf4 {[%emt 0:03:24]} Nxf4 {[%emt 0:00:02]} 20. Re4 {[%emt 0:03:20]} g5 {[%emt 0:03:20]} 21. Bf6 {[%emt 0:04:12]} h6 {[%emt 0:02:02]} 22. c4 {[%emt 0:00:52]} Nh5 {[%emt 0:01:02]} 23. Bb2 {[%emt 0:01:32]} Ng3 {[%emt 0:01:03]} 24. Re5 {[%emt 0:03:04]} Rxc4 {[%emt 0:02:45]} 25. Ne3 {[%emt 0:00:56]} Re4 {[%emt 0:02:10]} 26. Ng4 {[%emt 0:04:43]} f5 {[%emt 0:01:50]} 27. Rxe4 {[%emt 0:07:33]} Nxe4 {[%emt 0:00:22]} 28. Ne5 {[%emt 0:00:55]} Rd8 {[%emt 0:00:51]} 29. Rc1 {[%emt 0:07:05]} Nxf2 {[%emt 0:01:12]} 30. Kh2 {[%emt 0:00:11]} Nd3 {[%emt 0:01:07]} 31. Nxd3 {[%emt 0:00:12]} Rxd3 {[%emt 0:00:03]} 32. Rc8+ {[%emt 0:00:14]} Rd8 {[%emt 0:00:22]} 33. Rc2 {[%emt 0:00:09]} Be3 {[%emt 0:00:56]} 34. Bf6 {[%emt 0:01:30]} Rd2 {[%emt 0:01:52]} 35. Rc8+ {[%emt 0:00:20]} Kf7 {[%emt 0:00:54]} 36. Be5 {[%emt 0:02:11]} f4 {[%emt 0:00:08]} 37. Rc7+ {[%emt 0:00:06]} Ke8 {[%emt 0:01:57]} 38. Rc3 {[%emt 0:00:35]} Re2 {[%emt 0:02:35]} 39. Rc8+ {[%emt 0:01:35]} Kd7 {[%emt 0:00:23]} 40. Rc7+ {[%emt 0:00:05]} Kd8 {[%emt 0:00:11]} 41. Rxb7 {[%emt 0:00:31]} f3 {[%emt 0:00:09]} 42. Rb8+ {[%emt 0:00:06]} Kd7 {[%emt 0:00:28]} 43. Rb7+ {[%emt 0:00:04]} Kc6 {[%emt 0:00:34]} 44. Rf7 {[%emt 0:00:54]} fxg2 {[%emt 0:00:14]} 0-1

[Event "Croatian junior league 2021"]
[Site "Rabac"]
[Date "2021.04.06"]
[Round "2.17"]
[White "Ghersinich, Enrico"]
[Black "Perko, Bartol"]
[Result "1-0"]
[ECO "A22"]
[WhiteElo "2186"]
[BlackElo "1766"]
[Annotator "ChessBase"]
[PlyCount "65"]
[EventDate "2021.04.06"]
[EventType "swiss"]
[EventCountry "CRO"]
[SourceTitle "playchess.com"]
[Source "ChessBase"]
[SourceQuality "1"]
[TimeControl "5400+30"]

1. c4 {[%emt 0:00:00]} e5 {[%emt 0:00:00]} 2. Nc3 {[%emt 0:00:00]} Nf6 {[%emt 0:00:00]} 3. g3 {[%emt 0:00:23]} d6 {[%emt 0:01:17]} 4. Bg2 {[%emt 0:00:46]} Be7 {[%emt 0:00:40]} 5. Nf3 {[%emt 0:01:01]} O-O {[%emt 0:00:17]} 6. d4 {[%emt 0:01:27]} exd4 {[%emt 0:02:29]} 7. Nxd4 {[%emt 0:00:10]} Nbd7 {[%emt 0:00:53]} 8. O-O {[%emt 0:02:09]} Nc5 {[%emt 0:03:28]} 9. b4 {[%emt 0:02:15]} Ne6 {[%emt 0:00:26]} 10. Nf5 {[%emt 0:04:28]} Re8 {[%emt 0:01:16]} 11. Nxe7+ {[%emt 0:01:07]} Qxe7 {[%emt 0:00:12]} 12. Bb2 {[%emt 0:00:10]} Ng5 {[%emt 0:04:04]} 13. Qd4 {[%emt 0:05:10]} Qf8 {[%emt 0:03:25]} 14. Rfe1 {[%emt 0:05:39]} a5 {[%emt 0:13:44]} 15. Nd5 {[%emt 0:01:25]} Nxd5 {[%emt 0:01:30]} 16. cxd5 {[%emt 0:00:10]} f6 {[%emt 0:02:44]} 17. b5 {[%emt 0:02:43]} a4 {[%emt 0:10:28]} 18. Rac1 {[%emt 0:00:50]} Bd7 {[%emt 0:01:37]} 19. h4 {[%emt 0:02:40]} Nf7 {[%emt 0:00:41]} 20. Rxc7 {[%emt 0:00:26]} Bxb5 {[%emt 0:01:11]} 21. Bh3 {[%emt 0:02:55]} Nd8 {[%emt 0:05:36]} 22. h5 {[%emt 0:01:55]} Re7 {[%emt 0:02:02]} 23. Rec1 {[%emt 0:01:14]} a3 {[%emt 0:07:29]} 24. Ba1 {[%emt 0:01:59]} Ra4 {[%emt 0:11:33]} 25. Qb6 {[%emt 0:00:47]} Rxc7 {[%emt 0:02:32]} 26. Rxc7 {[%emt 0:00:18]} Rc4 {[%emt 0:00:26]} 27. h6 {[%emt 0:05:53]} Rxc7 {[%emt 0:01:37]} 28. Qxc7 {[%emt 0:00:10]} Nf7 {[%emt 0:02:13]} 29. Be6 {[%emt 0:00:45]} Bxe2 {[%emt 0:01:32]} 30. Bc3 {[%emt 0:03:11]} Bh5 {[%emt 0:01:07]} 31. g4 {[%emt 0:02:01]} Bg6 {[%emt 0:00:59]} 32. hxg7 {[%emt 0:00:17]} Qxg7 {[%emt 0:04:28]} 33. Qd8+ {[%emt 0:00:23]} 1-0

[Event "Croatian junior league 2021"]
[Site "Rabac"]
[Date "2021.04.06"]
[Round "2.18"]
[White "Poljan, Max"]
[Black "Purini, Bruno"]
[Result "0-1"]
[ECO "A20"]
[WhiteElo "1573"]
[BlackElo "1987"]
[Annotator "NA"]
[PlyCount "50"]
[EventDate "2021.04.06"]
[EventType "swiss"]
[EventCountry "CRO"]
[SourceTitle "playchess.com"]
[Source "ChessBase"]
[SourceQuality "1"]
[TimeControl "5400+30"]

1. c4 {[%emt 0:00:00]} e6 {[%emt 0:00:41]} 2. g3 {[%emt 0:00:00]} c5 {[%emt 0:01:16]} 3. Bg2 {[%emt 0:00:09]} d5 {[%emt 0:02:34]} 4. cxd5 {[%emt 0:00:03]} exd5 {[%emt 0:00:07]} 5. d4 {[%emt 0:00:09]} Nf6 {[%emt 0:00:56]} 6. Nc3 {[%emt 0:00:42]} cxd4 {[%emt 0:03:35]} 7. Qxd4 {[%emt 0:00:35]} Nc6 {[%emt 0:01:32]} 8. Qa4 {[%emt 0:01:25]} Be7 {[%emt 0:02:10]} 9. Nf3 {[%emt 0:00:54]} O-O {[%emt 0:00:48]} 10. O-O {[%emt 0:00:40]} Qb6 {[%emt 0:06:27]} 11. Rd1 {[%emt 0:04:44]} Rd8 {[%emt 0:02:13]} 12. Nb5 {[%emt 0:03:13]} Ne4 {[%emt 0:13:51]} 13. Be3 {[%emt 0:01:33]} Bc5 {[%emt 0:00:26]} 14. Bxc5 {[%emt 0:00:23]} Nxc5 {[%emt 0:00:56]} 15. Qh4 {[%emt 0:05:55]} Qxb5 {[%emt 0:00:52]} 16. Nd4 {[%emt 0:00:40]} Qb6 {[%emt 0:01:42]} 17. Rac1 {[%emt 0:01:44]} Be6 {[%emt 0:04:19]} 18. Nxc6 {[%emt 0:03:35]} bxc6 {[%emt 0:00:28]} 19. b4 {[%emt 0:09:43]} Nb7 {[%emt 0:00:45]} 20. Rc3 {[%emt 0:03:40]} Nd6 {[%emt 0:03:46]} 21. Rdc1 {[%emt 0:03:02]} Rdc8 {[%emt 0:01:58]} 22. e3 {[%emt 0:03:15]} h6 {[%emt 0:01:20]} 23. a3 {[%emt 0:03:00]} a5 {[%emt 0:00:10]} 24. bxa5 {[%emt 0:08:57]} Rxa5 {[%emt 0:00:08]} 25. e4 {[%emt 0:00:44]} d4 {[%emt 0:01:22]} 0-1

[Event "Croatian junior league 2021"]
[Site "Rabac"]
[Date "2021.04.06"]
[Round "2.19"]
[White "Muha, Magdalena"]
[Black "Hergotic, Mihael"]
[Result "1-0"]
[ECO "E09"]
[WhiteElo "1806"]
[BlackElo "1476"]
[Annotator "NA"]
[PlyCount "55"]
[EventDate "2021.04.06"]
[EventType "swiss"]
[EventCountry "CRO"]
[SourceTitle "playchess.com"]
[Source "ChessBase"]
[SourceQuality "1"]
[TimeControl "5400+30"]

1. d4 {[%emt 0:00:21]} d5 {[%emt 0:00:17]} 2. c4 {[%emt 0:00:14]} e6 {[%emt 0:01:05]} 3. Nf3 {[%emt 0:00:48]} Nf6 {[%emt 0:01:08]} 4. g3 {[%emt 0:00:15]} c6 {[%emt 0:01:17]} 5. Qc2 {[%emt 0:03:17]} Nbd7 {[%emt 0:01:33]} 6. Bg2 {[%emt 0:00:11]} Be7 {[%emt 0:02:28]} 7. O-O {[%emt 0:01:23]} O-O {[%emt 0:00:10]} 8. Nbd2 {[%emt 0:01:47]} Re8 {[%emt 0:03:34]} 9. e4 {[%emt 0:05:47]} dxe4 {[%emt 0:00:46]} 10. Nxe4 {[%emt 0:00:17]} Nxe4 {[%emt 0:00:09]} 11. Qxe4 {[%emt 0:00:09]} Nf6 {[%emt 0:00:03]} 12. Qc2 {[%emt 0:03:47]} Bd7 {[%emt 0:04:43]} 13. Rd1 {[%emt 0:05:03]} b5 {[%emt 0:00:40]} 14. Ne5 {[%emt 0:09:38]} Rc8 {[%emt 0:02:37]} 15. b3 {[%emt 0:02:54]} Qa5 {[%emt 0:14:08]} 16. g4 {[%emt 0:10:35]} Red8 {[%emt 0:03:29]} 17. g5 {[%emt 0:02:09]} Ne8 {[%emt 0:00:06]} 18. Be4 {[%emt 0:03:12]} f5 {[%emt 0:07:05]} 19. gxf6 {[%emt 0:03:17]} Nxf6 {[%emt 0:00:59]} 20. Bg5 {[%emt 0:07:30]} h6 {[%emt 0:08:15]} 21. Bh4 {[%emt 0:11:32]} Be8 {[%emt 0:04:31]} 22. Bg6 {[%emt 0:04:39]} c5 {[%emt 0:06:07]} 23. Bxe8 {[%emt 0:03:11]} Rxe8 {[%emt 0:01:02]} 24. Qg6 {[%emt 0:00:17]} Rf8 {[%emt 0:04:42]} 25. Rd3 {[%emt 0:00:58]} Bd6 {[%emt 0:02:42]} 26. Rg3 {[%emt 0:02:06]} Rc7 {[%emt 0:00:50]} 27. Bxf6 {[%emt 0:00:16]} Rxf6 {[%emt 0:00:39]} 28. Qxf6 {[%emt 0:00:10]} 1-0